Cogmind - Beta 10.2 *** ADVENTURER MODE // 2021.02.21 @ 10:50:35 Player: DUMBBITCHINDYSTOPIA Result: Self-destructed Performance ------------- Evolutions (1) 500 Regions Visited (3) 600 Robots Destroyed (8) 40 Value Destroyed (68) 68 Prototype IDs (2) 40 Alien Tech Used (0) 0 Bonus (-7) -7 TOTAL SCORE: 1241 Bonus ------- Friendly Fire -7 Cogmind --------- Core Integrity 245/400 Matter 300/300 Energy 100/100 System Corruption 0% Temperature Cool (0) Movement Walking (120) Location -9/Materials Parts ------- > --- POWER (1) -------- (None) > --- PROPULSION (3) --- Carbon-fiber Leg > --- UTILITY (3) ------ System Shield > --- WEAPON (2) ------- (None) > --- INVENTORY (4) ---- Advanced Signal Interpreter Integration Mediator Peak State ------------ > --- POWER ------------ Deuterium Engine > --- PROPULSION ------- Aluminum Leg > --- UTILITY ---------- Small Storage Unit Sensor Array > --- WEAPON ----------- EM Pulse Cannon Assault Rifle > --- INVENTORY -------- Advanced Signal Interpreter System Shield Light Assault Rifle [Rating: 10] Favorites ----------- Power Ion Engine Engine Ion Engine Propulsion Aluminum Leg Leg Aluminum Leg Utility Small Storage Unit Device Sensor Array Storage Small Storage Unit Hackware System Shield Weapon Assault Rifle Energy Gun Medium Laser Energy Cannon EM Pulse Cannon Ballistic Gun Assault Rifle Launcher Rocket Launcher Special Weapon Welding Torch Build | -11 -10 -10 -9 ------- Run | Scr Mat Min Mat Slots Evolved 2 | . . . 2 Power . | . . . . Propulsion 1 | . . . 1 Utility 1 | . . . 1 Weapon . | . . . . Parts Attached 21 | 6 4 7 4 Power 2 | 1 . 1 . Engine 2 | 1 . 1 . Core . | . . . . Reactor . | . . . . Propulsion 4 | 2 . . 2 Treads . | . . . . Leg 4 | 2 . . 2 Wheel . | . . . . Hover . | . . . . Flight . | . . . . Utility 4 | 1 2 . 1 Device 1 | . 1 . . Storage 2 | 1 1 . . Processor . | . . . . Hackware 1 | . . . 1 Protection . | . . . . Artifact . | . . . . Weapon 11 | 2 2 6 1 Energy Gun 3 | 2 . 1 . Energy Cannon 1 | . . 1 . Ballistic Gun 4 | . 2 2 . Ballistic Cannon . | . . . . Launcher 2 | . . 2 . Special Weapon 1 | . . . 1 Impact Weapon . | . . . . Slashing Weapon . | . . . . Piercing Weapon . | . . . . Special Melee Weapon . | . . . . Unidentified Prototypes . | . . . . Parts Lost 13 | . . 11 2 Power 2 | . . 2 . Propulsion 3 | . . 2 1 Utility 2 | . . 2 . Weapon 6 | . . 5 1 Highest Loss Streak 11 | . . 11 1 Average Slot Usage (%) 88 | . 99 93 31 Engine 11 | . 14 12 . Leg 25 | . 28 25 16 Device 9 | . 7 13 . Storage 14 | . 20 13 . Hackware 1 | . . . 11 Energy Gun 10 | . 23 . . Ballistic Gun 9 | . 4 16 . Launcher 3 | . . 8 . Naked Turns 9 | . . 9 . Heaviest Build 16 | 13 14 16 1 Greatest Support 30 | 20 20 20 30 Greatest Overweight (x) 1 | 1 . 1 . Average Overweight (x) . | . . . . Largest Inventory Capacity 6 | 6 6 6 4 Average Capacity 5 | 5 6 5 4 Most Carried 6 | 3 4 6 2 Average Carried 3 | 1 2 4 1 Final Capacity 6 | 6 6 4 4 Final Carried 3 | 2 3 2 2 Class Distribution -------------------- 89% | Mutant 10% | Hacker-Mutant Dominant Class ---------------- Mutant | -10/Materials Mutant | -10/Mines Hacker-Mutant | -9/Materials Resources | -11 -10 -10 -9 ----------- Run | Scr Mat Min Mat Matter Collected 455 | 260 33 122 40 Remotely . | . . . . Salvage Created 229 | 105 124 . . Parts 16 | 6 10 . . Haulers Intercepted 1 | . 1 . . Recyclers Shooed . | . . . . Parts Field Recycled . | . . . . Retrieved Matter . | . . . . Parts Self-Destructed . | . . . . Prevented . | . . . . Kills | -11 -10 -10 -9 ------- Run | Scr Mat Min Mat Combat Hostiles Destroyed 3 | . 3 . . Guns 3 | . 3 . . Classes Destroyed 5 | 2 3 . . Tunneler 2 | 2 . . . Hauler 1 | . 1 . . Recycler 1 | 1 . . . Watcher 1 | . 1 . . Swarmer 3 | . 3 . . Best Kill Streak 4 | 1 4 . . Combat Bots Only 3 | . 3 . . Max Kills in Single Turn 1 | 1 1 . . Gunslinging . | . . . . Exploded . | . . . . Melee . | . . . . Uniques/NPCs Destroyed . | . . . . Combat | -11 -10 -10 -9 -------- Run | Scr Mat Min Mat Damage Taken 1405 | . 81 994 330 Core 365 | . . 210 155 Absorbed by Shields . | . . . . Core Remaining (%) 58 | 100 . 16 . Volleys Fired 43 | 7 16 12 8 Largest 2 | 2 2 2 1 Hottest 90 | 90 90 83 20 Shots Fired 73 | 11 32 22 8 Gun 60 | 11 32 17 . Cannon 2 | . . 2 . Launcher 3 | . . 3 . Special 8 | . . . 8 Kinetic 26 | . 10 16 . Thermal 28 | 7 13 . 8 Explosive 3 | . . 3 . Electromagnetic 16 | 4 9 3 . Robot Hit Streak 14 | 5 14 6 10 Robot Miss Streak 3 | 1 2 3 2 Penetration Max . | . . . . Secondary Targets . | . . . . Shots Hit Robots 51 | 9 22 14 6 Core Hits 23 | 4 6 11 2 Critical Hits . | . . . . Critical Kills . | . . . . Critical Parts Destroyed . | . . . . Melee Attacks . | . . . . Impact . | . . . . Slashing . | . . . . Piercing . | . . . . Sneak Attacks . | . . . . Combat Hostiles . | . . . . Follow-up Attacks . | . . . . Damage Inflicted 855 | 129 314 394 18 Guns 598 | 129 314 155 . Cannons 43 | . . 43 . Explosions 196 | . . 196 . Melee . | . . . . Ramming . | . . . . Kinetic 242 | . 87 155 . Thermal 198 | 74 106 . 18 Explosive 196 | . . 196 . Electromagnetic 219 | 55 121 43 . Impact . | . . . . Slashing . | . . . . Piercing . | . . . . Highest Corruption . | . . . . Average Corruption . | . . . . Corruption Purged . | . . . . Overload Shots . | . . . . Overflow Damage 20 | . . 20 . Projectiles . | . . . . Explosions 20 | . . 20 . Melee . | . . . . Knockbacks . | . . . . Impact . | . . . . Kinetic . | . . . . Secondary . | . . . . Self-Inflicted Damage . | . . . . Shots . | . . . . Rammed . | . . . . Targets Rammed . | . . . . Kicked . | . . . . Crushed . | . . . . Highest Temperature 162 | 60 162 48 . Average Temperature 53 | 31 70 18 . Received Heat Transfer 278 | . . 20 258 Siege Activations . | . . . . Robots Corrupted . | . . . . Combat Hostiles . | . . . . Parts Fried 1 | 1 . . . Impact Corruptions . | . . . . Robots Melted . | . . . . Combat Hostiles . | . . . . Parts Melted 1 | . 1 . . Heat Transferred 668 | 222 296 . 150 Parts Sabotaged . | . . . . Parts Stolen . | . . . . Parts Stripped . | . . . . Power Chain Reactions . | . . . . Missiles Intercepted . | . . . . Alert | -11 -10 -10 -9 ------- Run | Scr Mat Min Mat Peak Influence 116 | 15 116 9 15 Initial 9 | . 8 9 . Average 16 | 6 32 6 6 Maximum Alert Level . | . . . . Low Security (%) 100 | 100 100 100 100 Level 1 . | . . . . Level 2 . | . . . . Level 3 . | . . . . Level 4 . | . . . . Level 5 . | . . . . High Security . | . . . . Max Security . | . . . . Squads Dispatched 2 | . 1 1 . Investigation 2 | . 1 1 . Extermination . | . . . . Reinforcement . | . . . . Assault . | . . . . Garrison . | . . . . Intercept . | . . . . Construction Impeded . | . . . . Haulers Reinforced . | . . . . Stealth | -11 -10 -10 -9 --------- Run | Scr Mat Min Mat Distress Signals 1 | . 1 . . Communications Jammed . | . . . . Distress Signals . | . . . . Times Spotted 35 | . 9 21 5 Peak Tracking Total 11 | . 4 11 3 Tactical Retreats 2 | . . 1 1 Traps | -11 -10 -10 -9 ------- Run | Scr Mat Min Mat Traps Triggered . | . . . . Indirectly . | . . . . Trap Hack Attempts . | . . . . Triggered . | . . . . Disarmed . | . . . . Reprogrammed . | . . . . Reused . | . . . . Traps Extracted . | . . . . Installed . | . . . . Triggered 1 | . 1 . . Machines | -11 -10 -10 -9 ---------- Run | Scr Mat Min Mat Machines Disabled . | . . . . Max in Single Turn . | . . . . Machines Sabotaged . | . . . . Garrisons Compromised . | . . . . Overloaded Fab Kills . | . . . . Fab Network Shutdowns . | . . . . Hacking | -11 -10 -10 -9 --------- Run | Scr Mat Min Mat Machines Accessed 5 | . 4 1 . Terminals 4 | . 4 . . Fabricators . | . . . . Repair Stations . | . . . . Recycling Units . | . . . . Scanalyzers . | . . . . Garrison Access . | . . . . Total Hacks 26 | . 25 1 . Successful 17 | . 16 1 . Failed 8 | . 8 . . Catastrophic . | . . . . Database Lockouts 1 | . 1 . . Manual 20 | . 20 . . Terminals 25 | . 25 . . Fabricators . | . . . . Repair Stations . | . . . . Recycling Units . | . . . . Scanalyzers . | . . . . Garrison Access . | . . . . Terminal Hacks 14 | . 13 1 . Robot Analysis 3 | . 3 . . Prototype ID Bank 1 | . 1 . . Open Door 1 | . . 1 . Branch Access Points 1 | . 1 . . Terminal Index 1 | . 1 . . Alert Level 1 | . 1 . . Locate Traps 2 | . 2 . . Hauler Manifests 1 | . 1 . . Zone Layout 3 | . 3 . . Fabricator Hacks . | . . . . Repair Station Hacks . | . . . . Recycling Unit Hacks . | . . . . Scanalyzer . | . . . . Garrison Access Hacks . | . . . . Unauthorized Hacks 3 | . 3 . . Terminals 3 | . 3 . . Track 1 | . 1 . . Botnet 2 | . 2 . . Fabricators . | . . . . Repair Stations . | . . . . Recycling Units . | . . . . Scanalyzers . | . . . . Garrison Access . | . . . . Data Cores Recovered . | . . . . Used . | . . . . Hacking Detections 3 | . 3 . . Full Trace Events . | . . . . Feedback Events . | . . . . Feedback Blocked . | . . . . Robot Schematics Acquired . | . . . . Robots Built . | . . . . Matter . | . . . . Time . | . . . . Total Robot Build Rating . | . . . . Part Schematics Acquired . | . . . . Parts Built . | . . . . Matter . | . . . . Time . | . . . . Total Part Build Rating . | . . . . Parts Repaired . | . . . . Time . | . . . . Parts Recycled . | . . . . Recycled Matter . | . . . . Retrieved Matter . | . . . . Retrieved Components . | . . . . Parts Scanalyzed . | . . . . Part Schematics Acquired . | . . . . Parts Damaged . | . . . . Bothacking | -11 -10 -10 -9 ------------ Run | Scr Mat Min Mat Used RIF Installer . | . . . . Robots Hacked . | . . . . Non-combat . | . . . . Combat . | . . . . Robot Hacks Applied . | . . . . Relay Couplers Released . | . . . . Robots Rewired . | . . . . Allies Hacked . | . . . . Hacks Repelled . | . . . . Allies | -11 -10 -10 -9 -------- Run | Scr Mat Min Mat Total Allies 2 | . . 2 . Largest Group 2 | . . 2 . Highest-Rated Group 45 | . . 45 . Highest-Rated Ally 31 | . . 31 . Total Orders . | . . . . Ally Attacks 5 | . . 5 . Total Damage 84 | . . 84 . Kills 3 | . . 3 . Allies Corrupted . | . . . . Allies Melted . | . . . . Intel | -11 -10 -10 -9 ------- Run | Scr Mat Min Mat Robot Analysis Total 3 | . 3 . . Derelict Logs Recovered 2 | . . 2 . Drone Launches . | . . . . Drone Recoveries . | . . . . Exploration | -11 -10 -10 -9 ------------- Run | Scr Mat Min Mat Turns Passed 1307 | 143 504 526 134 Spaces Moved 881 | 80 315 387 99 Core 78 | 7 . 39 32 Treads . | . . . . Legs 803 | 73 315 348 67 Wheels . | . . . . Hover . | . . . . Flight . | . . . . Fastest Speed 50 | 50 120 50 50 Average Speed 116 | 129 120 115 97 Slowest Speed 150 | 150 120 120 120 Overloaded Moves . | . . . . Propulsion Burnouts . | . . . . Robots Hopped . | . . . . Cave-ins Triggered . | . . . . Exploration Rate (%) 36 | 6 50 75 13 Regions Visited 3 Branch Regions 1 Pre-discovered Areas 1 | . . 1 . Known Exits Taken 1 | . 1 . . Unknown Exits Taken 2 | 1 . 1 . Scrap Searched 1 | . . 1 . Spaces Dug . | . . . . Terrain Destroyed 38 | . . 38 . Melee . | . . . . Projectile . | . . . . AOE 38 | . . 38 . Terrain Rammed . | . . . . Walls Destroyed . | . . . . Machines Disabled . | . . . . Actions | -11 -10 -10 -9 --------- Run | Scr Mat Min Mat Total 1082 | 106 409 442 125 Wait 125 | 11 71 30 13 Move 878 | 79 314 386 99 Hop . | . . . . Pick Up 11 | 3 2 5 1 Fast Attach 10 | 5 2 . 3 Attach 7 | 1 1 4 1 Detach . | . . . . Swap 4 | . 1 3 . Drop 4 | . 2 2 . Fire 43 | 7 16 12 8 Melee . | . . . . Ram . | . . . . Kick . | . . . . Crush . | . . . . Escape Stasis . | . . . . Rewire . | . . . . Trap . | . . . . Miscellaneous . | . . . . Route ------- -11/Scrapyard -10/Materials -10/Mines (discovered 3 exits: [*Mat x2] / [*Exi]) -9/Materials History --------- Turn | Location | Event 30 | -11/Scrapyard | Discovered new exit (range 15) 144 | -11/Scrapyard | Entered Materials 313 | -10/Materials | Build established: Mutant 362 | -10/Materials | Discovered new exit (range 7) 519 | -10/Materials | Identified exit to Mines 519 | -10/Materials | Central database locked down 648 | -10/Materials | Entered Mines 649 | -10/Mines | Learned location of Storage (-8) 671 | -10/Mines | Discovered new exit (range 11) 752 | -10/Mines | Received a Rocket Launcher from a helpful Derelict 754 | -10/Mines | Learned Materials terminal intel 803 | -10/Mines | Met a Derelict shopkeep closing up shop 896 | -10/Mines | Discovered new exit (range 8) 1012 | -10/Mines | Deemed a non-threat by the Exiles lab entrance 1013 | -10/Mines | Discovered new exit (range 5) 1089 | -10/Mines | Assembled infested the area 1144 | -10/Mines | Core integrity fell below 50% 1170 | -10/Mines | Core integrity fell below 20% 1174 | -10/Mines | Entered Materials 1174 | -9/Materials | Evolved 2 slots: Propulsion x1, Utility x1 1175 | -9/Materials | Loaded intel: 11 terminal locations 1196 | -9/Materials | Lost 11 parts (2p2n2u5w) 1308 | -9/Materials | Self-destructed Last Messages --------------- LOCATION=UNKNOWN GOAL=ESCAPE Loading Materials terminal intel (x11)... 01176_ 12-UQO(g): "Okay, now we're kinda screwed." 01181_ Acquired Integration Mediator. 01199_ U-05 Engineer destroyed. 01204_ 12-UQO(g) destroyed. 01206_ Acquired Carbon-fiber Leg. 01206_ K-01 Serf collects debris. 01207_ Acquired 20 matter. 01209_ Acquired Carbon-fiber Leg. 01212_ K-01 Serf collects debris. 01218_ G-34 Mercenary destroyed. 01226_ Acquired Welding Torch. 01246_ Acquired 20 matter. 01249_ K-01 Serf collects debris. 01256_ U-05 Engineer builds a Door. 01260_ Welding Torch destroyed. 01265_ K-01 Serf collects debris. 01305_ Carbon-fiber Leg destroyed. Map ----- +----------------------------------------------------+ | ??????????????????????????????????????????????# | | ???????????????????""?????????????????????????#### | | ???????????????????""????????????????????????????? | | ???????????????????T"????????????????????????????? | | ???????????????????""????????????????????????????? | | ???????????????????""????????????????????????????? | | ?????????????????????????????????????????????????? | | ???????????????????????????????"T"???????????????? | | ???????????????????????????????"""??T????? ??##### | | ?????????????????????????????????????????? ? | | ?????????????????????????????????????????? # | | ????????????????????????????????#######??#/## " | | ????????????????????????????????# #??# ## " | | ????????????????????????????????# #### ## " | | ???????????????????????????????? T ## " | | ????????????T???????????????????? ## ## " | | ????????????????????????????????? ?# ## | | ???????????????????????##?##+##### #?# + | | ???????????????????????# ?? # #?# ###### | | ???????????????????????# """"""" # #?# ###### | | ???????????????????????# """"""" # #?# | | ???????????????????????# """"""" + #?# | | ???????????????????????# """""""g##+#### | | ???????????????????????# """"""" # + | | ?????????????????"T"???# g # #######/#### | | ???????????????????????# @ g # #???? ?? | | ???????????????????????########### #???# ? | | ?????????????????????????????????# #???# | | ?????????????????????????????????######???# | | ??????????????????????????????????????????# | | ??????????????????????????????????????????######## | | ?????????????????????????????????????????????????? | | ?????????????????????????????????????????????????? | | ?????????????????????????????????????????????????? | | ?????????????????????????????????????????????????? | | ?????????????????????????????????????????????????? | | ?????????????????????????????????????????????????? | | ?????????????????????????????????????????????????? | | ?????????????????????????????????????????????????? | | ?????????????????????????????????????????????????? | | ?????????????????????????????????????????????????? | | ?????????????????????????????????????????????????? | | ?????????????????????????????????????????????????? | | ?????????????????????????????????????????????????? | | ????????????T????????????????????????????????????? | | ?????????????????????????????????????????????????? | | ?????????????????????????????????????????????????? | | ?????????????????????????????????????????????????? | | ?????????????????????????????????????????????????? | | ?????????????????????????????????????????????????? | +----------------------------------------------------+ Best States ------------- Heat Dissipation 28 Energy Generation 14 Energy Capacity 275 Matter Stores 300 Matter Capacity 350 Sight Range 16 Robot Scan Range 10 Terrain Scan Density 10 Resistance: KI 20 Resistance: TH 20 Resistance: EX 20 Resistance: EM 20 Resistance: I 20 Resistance: S 20 Resistance: P 20 Evasion (%) 50 Offensive Hacking 10 Defensive Hacking 10 Item Schematics ----------------- None Robot Schematics ------------------ None Fabricated ------------ Nothing Alien Tech Used ----------------- None Achievements -------------- None Challenges ------------ None Game ------ Seed SlugTransdimensionalScreen Manual? 0 Play Time 00:14:36 Cumulative 30.3 hours Start 2021.02.21 @ 10:37:18 End 2021.02.21 @ 10:50:35 Sessions 1 Manual Loads 0 Difficulty Adventurer Special Mode None Game No. 38 Rogue 3 Adventurer 35 Explorer 0 Win Type - Total 0 Types 0/0/0/0/0/0/0/0/0 Lore% 33 Gallery% 42 Achievement% 36 Wizard Run 0 Options --------- ASCII 0 Keyboard 0 Movement Arrows Keybinds 0 Fullscreen 1 Font 16/SmallcapsGlow Map View 75x55 Tactical HUD 1 Map Filters NONE Filters NONE Steam 0 RUN: 2dfd2ea6-3474-49d3-b5a0-0a3e3ff92086